fUSD/lending_fUSD_20240918
["ID","MTS","AMOUNT","RATE_DAILY","PERIOD"]
[338493191,1726701075267,-500.0,0.00014794,2]
[338493192,1726701075276,-3845.7,0.00014794,2]
[338493193,1726701075286,-500.0,0.00014794,2]
[338493194,1726701075296,-1182.3,0.00014794,2]
[338493195,1726701075306,-500.0,0.00014794,2]
[338493196,1726701075315,-500.0,0.00014794,2]
[338493197,1726701075326,-500.0,0.00014794,2]
[338493198,1726701075339,-3462.23,0.00014794,2]
[338493199,1726701075349,-500.0,0.00014794,2]
[338493200,1726701075359,-500.0,0.00014794,2]
[338493201,1726701075369,-1258.64,0.00014794,2]
[338493202,1726701075379,-521.31,0.00014794,2]
[338493203,1726701075388,-500.0,0.00014794,2]
[338493204,1726701075399,-740.72,0.00014794,2]
[338493205,1726701075409,-500.0,0.00014794,2]
[338493206,1726701075419,-566.47359057,0.00014794,2]
[338493207,1726701075428,-2377.47,0.00014794,2]
[338493208,1726701075438,-500.0,0.00014794,2]
[338493209,1726701075447,-1029.88,0.00014794,2]
[338493210,1726701075457,-500.0,0.00014794,2]
[338493211,1726701075467,-3194.18,0.00014794,2]
[338493212,1726701075476,-500.0,0.00014794,2]
[338493213,1726701075486,-2415.38,0.00014794,2]
[338493214,1726701075496,-1265.69,0.00014794,2]
[338493215,1726701075507,-1690.44,0.00014794,2]
[338493216,1726701075736,-500.0,0.00014794,2]
[338493217,1726701075754,-500.0,0.00014794,2]
[338493218,1726701075763,-500.0,0.00014794,2]
[338493219,1726701075773,-952.79,0.00014794,2]
[338493220,1726701075782,-1378.02,0.00014794,2]
[338493221,1726701075791,-7498.69,0.00014794,2]
[338493222,1726701075801,-5101.98,0.00014794,2]
[338493223,1726701075811,-500.0,0.00014794,2]
[338493224,1726701075821,-945.79,0.00014794,2]
[338493225,1726701075830,-500.0,0.00014794,2]
[338493226,1726701075839,-169.934292,0.00014794,2]
[338493227,1726701075849,-500.0,0.00014794,2]
[338493228,1726701075858,-500.0,0.00014794,2]
[338493229,1726701075868,-1631.1,0.00014794,2]
[338493230,1726701075877,-1201.47,0.00014794,2]
[338493231,1726701075887,-10841.57,0.00014794,2]
[338493232,1726701075896,-500.0,0.00014794,2]
[338493233,1726701075905,-1070.8,0.00014794,2]
[338493234,1726701075915,-500.0,0.00014794,2]
[338493235,1726701075924,-500.0,0.00014794,2]
[338493236,1726701075934,-612.28,0.00014794,2]
[338493237,1726701075944,-1507.3,0.00014794,2]
[338493238,1726701075955,-2540.86,0.00014794,2]
[338493239,1726701075964,-3821.29,0.00014794,2]
[338493240,1726701075973,-1746.27,0.00014794,2]
[338493241,1726701075983,-566.91,0.00014794,2]
[338493242,1726701075992,-500.0,0.00014794,2]
[338493243,1726701076002,-546.55,0.00014794,2]
[338493244,1726701076011,-4173.41,0.00014794,2]
[338493245,1726701076021,-4044.7,0.00014794,2]
[338493246,1726701076030,-500.0,0.00014794,2]
[338493247,1726701076040,-2263.55,0.00014794,2]
[338493248,1726701076049,-2664.12,0.00014794,2]
[338493249,1726701076060,-500.0,0.00014794,2]
[338493250,1726701076069,-4710.82,0.00014794,2]
[338493251,1726701076079,-500.0,0.00014794,2]
[338493252,1726701076088,-2747.57,0.00014794,2]
[338493253,1726701076098,-567.19,0.00014794,2]
[338493254,1726701076107,-500.0,0.00014794,2]
[338493255,1726701076117,-3892.76,0.00014794,2]
[338493256,1726701076126,-3110.05,0.00014794,2]
[338493257,1726701076136,-2132.52,0.00014794,2]
[338493258,1726701076145,-2426.58,0.00014794,2]
[338493259,1726701076154,-517.03,0.00014794,2]
[338493260,1726701076164,-1746.19,0.00014794,2]
[338493261,1726701076173,-500.0,0.00014794,2]
[338493262,1726701076182,-500.0,0.00014794,2]
[338493263,1726701076192,-1380.78,0.00014794,2]
[338493264,1726701076202,-151.0,0.00014794,2]
[338493265,1726701076211,-550.72,0.00014794,2]
[338493266,1726701076221,-151.0,0.00014794,2]
[338493267,1726701076230,-151.0,0.00014794,2]
[338493268,1726701076240,-500.0,0.00014794,2]
[338493269,1726701076250,-181.397948,0.00014794,2]
[338493270,1726701076261,-1310.46,0.00014794,2]
[338493271,1726701076271,-888.05,0.00014794,2]
[338493272,1726701076281,-500.0,0.00014794,2]
[338493273,1726701076291,-3418.45,0.00014794,2]
[338493274,1726701076301,-5702.61,0.00014794,2]
[338493275,1726701076314,-500.0,0.00014794,2]
[338493276,1726701076327,-10938.75,0.00014794,2]
[338493277,1726701076336,-500.0,0.00014794,2]
[338493278,1726701076346,-500.0,0.00014794,2]
[338493279,1726701076367,-500.0,0.00014794,2]
[338493280,1726701076377,-2288.91,0.00014794,2]
[338493281,1726701076387,-500.0,0.00014794,2]
[338493282,1726701076397,-1117.59,0.00014794,2]
[338493283,1726701076406,-2055.05,0.00014794,2]
[338493284,1726701076416,-1764.43,0.00014794,2]
[338493285,1726701076426,-500.0,0.00014794,2]
[338493286,1726701076435,-500.0,0.00014794,2]
[338493287,1726701076444,-500.0,0.00014794,2]
[338493288,1726701076454,-1135.49,0.00014794,2]
[338493289,1726701076463,-1046.08,0.00014794,2]
[338493290,1726701076473,-1320.57,0.00014794,2]
[338493291,1726701076483,-833.43,0.00014794,2]
[338493292,1726701076492,-3153.6,0.00014794,2]
[338493293,1726701076502,-500.0,0.00014794,2]
[338493294,1726701076512,-6684.3,0.00014794,2]
[338493295,1726701076522,-500.0,0.00014794,2]
[338493296,1726701076532,-696.74,0.00014794,2]
[338493297,1726701076541,-2112.42,0.00014794,2]
[338493298,1726701076551,-500.0,0.00014794,2]
[338493299,1726701076562,-1426.2,0.00014794,2]
[338493300,1726701076572,-500.0,0.00014794,2]
[338493301,1726701076583,-6344.19,0.00014794,2]
[338493302,1726701076594,-899.63,0.00014794,2]
[338493303,1726701076605,-3014.77,0.00014794,2]
[338493304,1726701076615,-1125.2,0.00014794,2]
[338493305,1726701076625,-1742.83,0.00014794,2]
[338493306,1726701076634,-500.0,0.00014794,2]
[338493307,1726701076645,-500.0,0.00014794,2]
[338493308,1726701076655,-1888.53,0.00014794,2]
[338493309,1726701076665,-1775.08,0.00014794,2]
[338493310,1726701076675,-500.0,0.00014794,2]
[338493311,1726701076686,-500.0,0.00014794,2]
[338493312,1726701076697,-7475.72,0.00014794,2]
[338493313,1726701076707,-1310.07,0.00014794,2]
[338493314,1726701076716,-670.13,0.00014794,2]
[338493315,1726701076727,-500.0,0.00014794,2]
[338493316,1726701076736,-154.670468,0.00014794,2]
[338493317,1726701076747,-5638.78,0.00014794,2]
[338493318,1726701076757,-154.670468,0.00014794,2]
[338493319,1726701076767,-154.670468,0.00014794,2]
[338493320,1726701076776,-500.0,0.00014794,2]
[338493321,1726701076787,-154.670468,0.00014794,2]
[338493322,1726701076796,-500.0,0.00014794,2]
[338493323,1726701076806,-3977.87,0.00014794,2]
[338493324,1726701076815,-1115.87,0.00014794,2]
[338493325,1726701076825,-11882.16,0.00014794,2]
[338493326,1726701076835,-8250.37,0.00014794,2]
[338493327,1726701076844,-4410.37,0.00014794,2]
[338493328,1726701076853,-500.0,0.00014794,2]
[338493329,1726701076863,-500.0,0.00014794,2]
[338493330,1726701076873,-495.02534406,0.00014794,2]
[338493331,1726701076883,-154.670468,0.00014794,2]
[338493332,1726701076893,-154.670468,0.00014794,2]
[338493333,1726701076904,-154.670468,0.00014794,2]
[338493334,1726701076914,-2431.14,0.00014794,2]
[338493335,1726701076924,-500.0,0.00014794,2]
[338493336,1726701076933,-154.670468,0.00014794,2]
[338493337,1726701076943,-9730.65,0.00014794,2]
[338493338,1726701076953,-5674.07,0.00014794,2]
[338493339,1726701076963,-500.0,0.00014794,2]
[338493340,1726701076973,-500.0,0.00014794,2]
[338493341,1726701076982,-500.0,0.00014794,2]
[338493342,1726701076992,-935.45,0.00014794,2]
[338493343,1726701077002,-1514.17,0.00014794,2]
[338493344,1726701077011,-2151.12,0.00014794,2]
[338493345,1726701077025,-500.0,0.00014794,2]
[338493346,1726701077035,-1087.06,0.00014794,2]
[338493347,1726701077045,-696.12,0.00014794,2]
[338493348,1726701077055,-500.0,0.00014794,2]
[338493349,1726701077065,-4139.73,0.00014794,2]
[338493350,1726701077075,-822.24,0.00014794,2]
[338493351,1726701077085,-2037.75,0.00014794,2]
[338493352,1726701077095,-6964.42,0.00014794,2]
[338493353,1726701077104,-2608.33,0.00014794,2]
[338493354,1726701077114,-4905.73,0.00014794,2]
[338493355,1726701077123,-1019.46,0.00014794,2]
[338493356,1726701077133,-500.0,0.00014794,2]
[338493357,1726701077143,-15881.08,0.00014794,2]
[338493358,1726701077156,-1034.36,0.00014794,2]
[338493359,1726701077165,-500.0,0.00014794,2]
[338493360,1726701077175,-2813.1,0.00014794,2]
[338493361,1726701077184,-500.0,0.00014794,2]
[338493362,1726701077194,-500.0,0.00014794,2]
[338493363,1726701077204,-500.0,0.00014794,2]
[338493364,1726701077214,-866.49,0.00014794,2]
[338493365,1726701077224,-2885.72,0.00014794,2]
[338493366,1726701077234,-4878.96,0.00014794,2]
[338493367,1726701077244,-402.60370667,0.00014794,2]
[338493368,1726701077254,-500.0,0.00014794,2]
[338493369,1726701077264,-748.63,0.00014794,2]
[338493370,1726701077276,-2322.65,0.00014794,2]
[338493371,1726701077286,-500.0,0.00014794,2]
[338493372,1726701077295,-4305.73,0.00014794,2]
[338493373,1726701077306,-500.0,0.00014794,2]
[338493374,1726701077316,-10401.88,0.00014794,2]
[338493375,1726701077327,-1604.6,0.00014794,2]
[338493376,1726701077338,-1019.0,0.00014794,2]
[338493377,1726701077348,-500.0,0.00014794,2]
[338493378,1726701077358,-1612.99,0.00014794,2]
[338493379,1726701077368,-2119.16,0.00014794,2]
[338493380,1726701077379,-1327.03,0.00014794,2]
[338493381,1726701077390,-992.49,0.00014794,2]
[338493382,1726701077401,-500.0,0.00014794,2]
[338493383,1726701077411,-4776.71,0.00014794,2]
[338493384,1726701077422,-500.0,0.00014794,2]
[338493385,1726701077432,-2581.94,0.00014794,2]
[338493386,1726701077442,-2726.12,0.00014794,2]
[338493387,1726701077452,-500.0,0.00014794,2]
[338493388,1726701077462,-500.0,0.00014794,2]
[338493389,1726701077471,-4867.69,0.00014794,2]
[338493390,1726701077482,-252.77904524,0.00014794,2]
[338493391,1726701077492,-5325.14,0.00014794,2]
[338493392,1726701077503,-4393.98,0.00014794,2]
[338493393,1726701077512,-500.0,0.00014794,2]
[338493394,1726701077524,-2961.77,0.00014794,2]
[338493395,1726701077533,-2362.74,0.00014794,2]
[338493396,1726701077543,-3015.98,0.00014794,2]
[338493397,1726701077552,-500.0,0.00014794,2]
[338493398,1726701077564,-560.64,0.00014794,2]
[338493399,1726701077574,-1381.08,0.00014794,2]
[338493400,1726701077584,-500.0,0.00014794,2]
[338493401,1726701077593,-6555.07922459,0.00014794,2]
[338493402,1726701078717,-2734.64111768,0.00014794,2]
[338493403,1726701078729,-607.15965773,0.00014794,2]
[338493404,1726701078739,-4387.14,0.00014794,2]
[338493405,1726701078748,-2835.5768822,0.00014794,2]
[338493406,1726701078759,-1145.4631178,0.00014794,2]
[338493407,1726701078769,-500.0,0.00014794,2]
[338493408,1726701078779,-173.4368822,0.00014794,2]
[338493409,1726701078791,-407.31829927,0.00014794,2]
[338493410,1726701078802,-312.004999,0.00014794,2]
[338493411,1726701078816,-1340.90112219,0.00014794,2]
[338493412,1726701078827,-11024.37869734,0.00014794,2]
[338493413,1726701078837,-500.0,0.00014794,2]
[338493414,1726701078846,-500.0,0.00014794,2]
[338493415,1726701078856,-535.42,0.00014794,2]
[338493416,1726701078865,-151.0,0.00014794,2]
[338493417,1726701078875,-151.0,0.00014794,2]
[338493418,1726701078884,-500.0,0.00014794,2]
[338493419,1726701078894,-248.795282,0.00014794,2]
[338493420,1726701078903,-500.0,0.00014794,2]
[338493421,1726701078913,-1091.85,0.00014794,2]
[338493422,1726701078923,-500.0,0.00014794,2]
[338493423,1726701078932,-500.0,0.00014794,2]
[338493424,1726701078941,-870.77,0.00014794,2]
[338493425,1726701078951,-2283.93605106,0.00014794,2]
[338493426,1726701078963,-451.78394894,0.00014794,2]
[338493427,1726701078972,-500.0,0.00014794,2]
[338493428,1726701078982,-500.0,0.00014794,2]
[338493429,1726701078991,-7049.84,0.00014794,2]
[338493430,1726701079000,-500.0,0.00014794,2]
[338493431,1726701079010,-9224.58,0.00014794,2]
[338493432,1726701079019,-301.21442481,0.00014794,2]
[338493433,1726701079031,-1031.00172718,0.00014794,2]
[338493434,1726701079043,-2986.16384801,0.00014794,2]
[338493435,1726701079053,-500.0,0.00014794,2]
[338493436,1726701079064,-1577.79859752,0.00014794,2]
[338493437,1726701079075,-320.10297877,0.00014794,2]
[338493438,1726701079117,-181.58842371,0.00014794,2]
[338493439,1726701079126,-898.12,0.00014794,2]
[338493440,1726701079135,-10347.42308898,0.00014794,2]
[338493441,1726701079146,-1806.12691102,0.00014794,2]
[338493442,1726701079155,-500.0,0.00014794,2]
[338493443,1726701079166,-531.62005512,0.00014794,2]
[338493444,1726701079177,-3031.43850912,0.00014794,2]
[338493445,1726701079188,-1086.34670665,0.00014794,2]
[338493446,1726701079200,-535.85788251,0.00014794,2]
[338493447,1726701079211,-1534.61932229,0.00014794,2]
[338493448,1726701079222,-842.01752431,0.00014794,2]
[338493449,1726701079231,-896.56,0.00014794,2]
[338493450,1726701079241,-213.88535275,0.00014794,2]
[338493451,1726701079253,-862.93464725,0.00014794,2]
[338493452,1726701079262,-2156.54,0.00014794,2]
[338493453,1726701079272,-777.02,0.00014794,2]
[338493454,1726701079281,-500.0,0.00014794,2]
[338493455,1726701079291,-500.0,0.00014794,2]
[338493456,1726701079300,-4836.29,0.00014794,2]
[338493457,1726701079310,-4943.68,0.00014794,2]
[338493458,1726701079320,-1272.2,0.00014794,2]
[338493459,1726701079332,-1236.46,0.00014794,2]
[338493460,1726701079342,-5850.2,0.00014794,2]
[338493461,1726701079351,-587.4246285,0.00014794,2]
[338493462,1726701079362,-1322.74,0.00014794,2]
[338493463,1726701079372,-500.0,0.00014794,2]
[338493464,1726701079382,-500.0,0.00014794,2]
[338493465,1726701079391,-72546.69,0.00014794,2]
[338493466,1726701079402,-19890.92,0.00014794,2]
[338493467,1726701079411,-696.75,0.00014794,2]
[338493468,1726701079420,-500.0,0.00014794,2]
[338493469,1726701079429,-500.0,0.00014794,2]
[338493470,1726701079439,-1022.21,0.00014794,2]
[338493471,1726701079448,-500.0,0.00014794,2]
[338493472,1726701079457,-500.0,0.00014794,2]
[338493473,1726701079466,-500.0,0.00014794,2]
[338493474,1726701079475,-3783.05,0.00014794,2]
[338493475,1726701079484,-500.0,0.00014794,2]
[338493476,1726701079493,-1313.78,0.00014794,2]
[338493477,1726701079503,-4162.73,0.00014794,2]
[338493478,1726701079512,-4642.28,0.00014794,2]
[338493479,1726701079521,-4704.87,0.00014794,2]
[338493480,1726701079531,-500.0,0.00014794,2]
[338493481,1726701079540,-651.01,0.00014794,2]
[338493482,1726701079549,-2710.47,0.00014794,2]
[338493483,1726701079560,-547.04,0.00014794,2]
[338493484,1726701079576,-1959.53,0.00014794,2]
[338493485,1726701079586,-500.0,0.00014794,2]
[338493486,1726701079597,-500.0,0.00014794,2]
[338493487,1726701079607,-9033.14026963,0.00014794,2]
[338493488,1726701079619,-2658.3,0.00014794,2]
[338493489,1726701079630,-4285.81638443,0.00014794,2]
[338493490,1726701079641,-622.61334594,0.00014794,2]
[338493491,1726701079650,-844.58,0.00014794,2]
[338493492,1726701079659,-318.63264863,0.00014794,2]
[338493493,1726701079672,-181.36735137,0.00014794,2]
[338493494,1726701079681,-546.03748502,0.00014794,2]
[338493495,1726701079693,-281.19251498,0.00014794,2]
[338493496,1726701079702,-1658.09,0.00014794,2]
[338493497,1726701079712,-500.0,0.00014794,2]
[338493498,1726701079722,-4973.46,0.00014794,2]
[338493499,1726701079731,-500.0,0.00014794,2]
[338493500,1726701079742,-519.85,0.00014794,2]
[338493501,1726701079752,-582.54,0.00014794,2]
[338493502,1726701079762,-9988.94529355,0.00014794,2]
[338493503,1726701079774,-9156.57470645,0.00014794,2]
[338493504,1726701079784,-995.68,0.00014794,2]
[338493505,1726701079794,-500.0,0.00014794,2]
[338493506,1726701079804,-500.0,0.00014794,2]
[338493507,1726701079821,-1369.39,0.00014794,2]
[338493508,1726701079831,-1241.13,0.00014794,2]
[338493509,1726701079840,-500.0,0.00014794,2]
[338493510,1726701079850,-1103.75,0.00014794,2]
[338493511,1726701079860,-1970.55,0.00014794,2]
[338493512,1726701079870,-3716.26,0.00014794,2]
[338493513,1726701079880,-1150.3,0.00014794,2]
[338493514,1726701079890,-4885.54314868,0.00014794,2]
[338493515,1726701079902,-1518.24201,0.00014794,2]
[338493516,1726701079915,-1283.18484132,0.00014794,2]
[338493517,1726701079925,-80.50350797,0.00014794,2]
[338493518,1726701079938,-2023.404,0.00014794,2]
[338493519,1726701079949,-587.72819476,0.00014794,2]
[338493520,1726701079962,-1599.21429727,0.00014794,2]
[338493521,1726701079972,-3466.53277803,0.00014794,2]
[338493522,1726701079995,-6783.51722197,0.00014794,2]
[338493523,1726701080006,-1152.24,0.00014794,2]
[338493524,1726701080016,-500.0,0.00014794,2]
[338493525,1726701080027,-500.0,0.00014794,2]
[338493526,1726701080037,-3543.04,0.00014794,2]
[338493527,1726701080047,-151.0,0.00014794,2]
[338493528,1726701080057,-151.0,0.00014794,2]
[338493529,1726701080074,-151.0,0.00014794,2]
[338493530,1726701080084,-151.0,0.00014794,2]
[338493531,1726701080095,-941.32,0.00014794,2]
[338493532,1726701080104,-4090.04,0.00014794,2]
[338493533,1726701080114,-1426.88,0.00014794,2]
[338493534,1726701080124,-596.04321819,0.00014794,2]
[338493535,1726701080134,-3465.75,0.00014794,2]
[338493536,1726701080143,-1134.15,0.00014794,2]
[338493537,1726701080153,-751.09,0.00014794,2]
[338493538,1726701080162,-500.0,0.00014794,2]
[338493539,1726701080172,-500.0,0.00014794,2]
[338493540,1726701080182,-1073.28,0.00014794,2]
[338493541,1726701080193,-500.0,0.00014794,2]
[338493542,1726701080205,-6120.71,0.00014794,2]
[338493543,1726701080215,-3051.55,0.00014794,2]
[338493544,1726701080225,-4235.17,0.00014794,2]
[338493545,1726701080235,-12479.38,0.00014794,2]
[338493546,1726701080247,-500.0,0.00014794,2]
[338493547,1726701080258,-500.0,0.00014794,2]
[338493548,1726701080268,-500.0,0.00014794,2]
[338493549,1726701080278,-715.95,0.00014794,2]
[338493550,1726701080288,-3399.17,0.00014794,2]
[338493551,1726701080298,-653.25,0.00014794,2]
[338493552,1726701080309,-648.98924102,0.00014794,2]
[338493553,1726701080319,-676.36,0.00014794,2]
[338493554,1726701080332,-6327.6,0.00014794,2]
[338493555,1726701080342,-500.0,0.00014794,2]
[338493556,1726701080353,-1522.38,0.00014794,2]
[338493557,1726701080363,-500.0,0.00014794,2]
[338493558,1726701080374,-892.28,0.00014794,2]
[338493559,1726701080384,-1813.18,0.00014794,2]
[338493560,1726701080394,-500.0,0.00014794,2]
[338493561,1726701080407,-500.0,0.00014794,2]
[338493562,1726701080419,-500.0,0.00014794,2]
[338493563,1726701080430,-500.0,0.00014794,2]
[338493564,1726701080440,-500.0,0.00014794,2]
[338493565,1726701080450,-500.0,0.00014794,2]
[338493566,1726701080459,-500.0,0.00014794,2]
[338493567,1726701080469,-14571.02,0.00014794,2]
[338493568,1726701080480,-760.95,0.00014794,2]
[338493569,1726701080491,-6260.63,0.00014794,2]
[338493570,1726701080500,-4668.93,0.00014794,2]
[338493571,1726701080510,-1796.9,0.00014794,2]
[338493572,1726701080520,-2043.5,0.00014794,2]
[338493573,1726701080530,-694.48,0.00014794,2]
[338493574,1726701080541,-11148.94,0.00014794,2]
[338493575,1726701080551,-500.0,0.00014794,2]
[338493576,1726701080563,-1414.96,0.00014794,2]
[338493577,1726701080572,-3664.06,0.00014794,2]
[338493578,1726701080582,-539.3,0.00014794,2]
[338493579,1726701080593,-1500.47,0.00014794,2]
[338493580,1726701080603,-500.0,0.00014794,2]
[338493581,1726701080614,-500.0,0.00014794,2]
[338493582,1726701080624,-1509.97,0.00014794,2]
[338493583,1726701080633,-500.0,0.00014794,2]
[338493584,1726701080643,-500.0,0.00014794,2]
[338493585,1726701080653,-1344.97,0.00014794,2]
[338493586,1726701080664,-500.0,0.00014794,2]
[338493587,1726701080674,-500.0,0.00014794,2]
[338493588,1726701080684,-500.0,0.00014794,2]
[338493589,1726701080694,-500.0,0.00014794,2]
[338493590,1726701080704,-5853.48,0.00014794,2]
[338493591,1726701080715,-1961.90813491,0.00014794,2]
[338493592,1726701080727,-338.0226125,0.00014794,2]
[338493593,1726701080739,-1213.99087662,0.00014794,2]
[338493594,1726701080752,-585.86837597,0.00014794,2]
[338493595,1726701080762,-4568.35127002,0.00014794,2]
[338493596,1726701080773,-359.58943198,0.00014794,2]
[338493597,1726701080785,-643.23488832,0.00014794,2]
[338493598,1726701080797,-837.74750378,0.00014794,2]
[338493599,1726701081653,-568.58379068,0.0001452,2]
[338493600,1726701081665,-532.35328105,0.0001452,2]
[338493601,1726701081678,-2114.69292827,0.0001452,2]
[338493602,1726701081688,-500.0,0.0001452,2]
[338493603,1726701081697,-500.0,0.0001452,2]
[338493604,1726701081707,-2857.20707173,0.00014794,2]
[338493605,1726701081719,-38.96983417,0.00014794,2]
[338493606,1726701081729,-291.53016583,0.00014794,2]
[338493607,1726701081741,-275.79983417,0.00014794,2]
[338493608,1726701081750,-795.41472752,0.00014794,2]
[338493609,1726701081762,-1232.8790104,0.00014794,2]
[338493610,1726701081774,-8457.3627112,0.00014794,2]
[338493611,1726701081786,-2842.93355088,0.00014794,2]
[338493612,1726701081796,-3140.96644912,0.00014794,2]
[338493613,1726701081807,-707.63109729,0.00014794,2]
[338493614,1726701081820,-473.07245359,0.00014794,2]
[338493615,1726701081830,-1258.98,0.00014794,2]
[338493616,1726701081840,-500.0,0.00014794,2]
[338493617,1726701081850,-500.0,0.00014794,2]
[338493618,1726701081860,-1095.7,0.00014794,2]
[338493619,1726701081871,-1180.07,0.00014794,2]
[338493620,1726701081881,-5834.11,0.00014794,2]
[338493621,1726701081891,-895.61,0.00014794,2]
[338493622,1726701081902,-1152.96,0.00014794,2]
[338493623,1726701081913,-500.0,0.00014794,2]
[338493624,1726701081923,-7688.34,0.00014794,2]
[338493625,1726701081933,-500.0,0.00014794,2]
[338493626,1726701081944,-12527.0747441,0.00014794,2]
[338493627,1726701083818,-21986.27470492,0.00014794,2]
[338493628,1726701083830,-10877.31968114,0.00014794,2]
[338493629,1726701083848,-361.01292754,0.00013973,2]
[338493630,1726701083860,-67.02707246,0.00013973,2]
[338493631,1726701083869,-39627.71900735,0.00014794,2]
[338493632,1726701083881,-332.4976,0.00014794,2]
[338493633,1726701083892,-566.90214769,0.00014794,2]
[338493634,1726701083903,-2939.32172658,0.00014794,2]
[338493635,1726701083915,-3470.18008197,0.00014794,2]
[338493636,1726701083924,-1021.53993295,0.00014794,2]
[338493637,1726701083937,-418.64006705,0.00014794,2]
[338493638,1726701083946,-500.0,0.00014794,2]
[338493639,1726701083956,-6106.62,0.00014794,2]
[338493640,1726701083965,-3995.47,0.00014794,2]
[338493641,1726701083975,-1801.72,0.00014794,2]
[338493642,1726701083985,-531.35,0.00014794,2]
[338493643,1726701083994,-530.8,0.00014794,2]
[338493644,1726701084003,-500.0,0.00014794,2]
[338493645,1726701084012,-500.0,0.00014794,2]
[338493646,1726701084022,-2973.52,0.00014794,2]
[338493647,1726701084031,-1816.25,0.00014794,2]
[338493648,1726701084040,-500.0,0.00014794,2]
[338493649,1726701084050,-622.61,0.00014794,2]
[338493650,1726701084060,-718.35,0.00014794,2]
[338493651,1726701084070,-1737.68,0.00014794,2]
[338493652,1726701084079,-500.0,0.00014794,2]
[338493653,1726701084090,-2844.06,0.00014794,2]
[338493654,1726701084099,-596.63356008,0.00014794,2]
[338493655,1726701084108,-965.61,0.00014794,2]
[338493656,1726701084117,-2006.87,0.00014794,2]
[338493657,1726701084127,-784.3,0.00014794,2]
[338493658,1726701084136,-500.0,0.00014794,2]
[338493659,1726701084146,-1074.23,0.00014794,2]
[338493660,1726701084155,-500.0,0.00014794,2]
[338493661,1726701084165,-7982.33,0.00014794,2]
[338493662,1726701084174,-1780.82,0.00014794,2]
[338493663,1726701084183,-500.0,0.00014794,2]
[338493664,1726701084192,-2542.71,0.00014794,2]
[338493665,1726701084202,-500.0,0.00014794,2]
[338493666,1726701084211,-3496.5,0.00014794,2]
[338493667,1726701084221,-500.0,0.00014794,2]
[338493668,1726701084231,-4974.8,0.00014794,2]
[338493669,1726701084240,-500.0,0.00014794,2]
[338493670,1726701084250,-5028.96,0.00014794,2]
[338493671,1726701084259,-620.01,0.00014794,2]
[338493672,1726701084269,-500.0,0.00014794,2]
[338493673,1726701084278,-500.0,0.00014794,2]
[338493674,1726701084288,-500.0,0.00014794,2]
[338493675,1726701084297,-2249.69,0.00014794,2]
[338493676,1726701084307,-500.0,0.00014794,2]
[338493677,1726701084319,-500.0,0.00014794,2]
[338493678,1726701084330,-885.19,0.00014794,2]
[338493679,1726701084340,-723.46,0.00014794,2]
[338493680,1726701084349,-8201.83,0.00014794,2]
[338493681,1726701084359,-500.0,0.00014794,2]
[338493682,1726701084369,-500.0,0.00014794,2]
[338493683,1726701084379,-554.09,0.00014794,2]
[338493684,1726701084389,-440.59886062,0.00014794,2]
[338493685,1726701084399,-500.0,0.00014794,2]
[338493686,1726701084411,-1005.02,0.00014794,2]
[338493687,1726701084421,-1273.14,0.00014794,2]
[338493688,1726701084431,-718.43,0.00014794,2]
[338493689,1726701084440,-500.0,0.00014794,2]
[338493690,1726701084450,-500.0,0.00014794,3]